[Event "EYCC Girls-U10 2019"]
[Site "Bratislava"]
[Date "2019.08.07"]
[Round "6.15"]
[White "Stefan, Iulia-Cristiana"]
[Black "Toth, Timea"]
[Result "1-0"]
[ECO "B24"]
[WhiteElo "1389"]
[BlackElo "1964"]
[Annotator "NA"]
[PlyCount "65"]
[EventDate "2019.08.02"]
[EventType "swiss"]
[EventCountry "SVK"]
[SourceTitle "playchess.com"]
[Source "ChessBase"]
[SourceQuality "1"]
[TimeControl "40/5400+30:1800+30"]

1. e4 {[%emt 0:00:00]} c5 {[%emt 0:00:00]} 2. Nc3 {[%emt 0:00:00]} Nc6 {[%emt 0:00:00]} 3. g3 {[%emt 0:00:00]} g6 {[%emt 0:00:05]} 4. Bg2 {[%emt 0:00:00]} Bg7 {[%emt 0:00:19]} 5. d3 {[%emt 0:00:06]} Nf6 {[%emt 0:00:24]} 6. Nh3 {[%emt 0:00:18]} O-O {[%emt 0:01:32]} 7. O-O {[%emt 0:00:13]} d6 {[%emt 0:00:44]} 8. f4 {[%emt 0:00:13]} Bg4 {[%emt 0:16:50]} 9. Qd2 {[%emt 0:00:15]} Nd4 {[%emt 0:08:49]} 10. Nf2 {[%emt 0:01:28]} Qd7 {[%emt 0:18:56]} 11. h3 {[%emt 0:10:43]} Bf3 {[%emt 0:07:54]} 12. Nfd1 {[%emt 0:00:57]} Bxg2 {[%emt 0:00:32]} 13. Qxg2 {[%emt 0:00:52]} b5 {[%emt 0:06:54]} 14. Ne3 {[%emt 0:02:37]} b4 {[%emt 0:03:06]} 15. Ncd5 {[%emt 0:00:27]} Nxd5 {[%emt 0:00:18]} 16. Nxd5 {[%emt 0:00:22]} e6 {[%emt 0:07:26]} 17. Ne3 {[%emt 0:01:04]} a5 {[%emt 0:01:35]} 18. g4 {[%emt 0:03:28]} f5 {[%emt 0:07:34]} 19. exf5 {[%emt 0:04:40]} exf5 {[%emt 0:00:18]} 20. Nd5 {[%emt 0:01:50]} Rab8 {[%emt 0:01:10]} 21. g5 {[%emt 0:28:20]} Rfe8 {[%emt 0:02:57]} 22. Be3 {[%emt 0:03:39]} Rb7 {[%emt 0:03:36]} 23. Rfe1 {[%emt 0:05:29]} Nc6 {[%emt 0:03:07]} 24. Rab1 {[%emt 0:01:48]} Ne7 {[%emt 0:00:46]} 25. Bf2 {[%emt 0:19:44]} Kf8 {[%emt 0:01:27]} 26. Nf6 {[%emt 0:08:34]} Bxf6 {[%emt 0:00:18]} 27. gxf6 {[%emt 0:00:07]} Nc6 {[%emt 0:00:58]} 28. Rxe8+ {[%emt 0:01:36]} Qxe8 {[%emt 0:00:37]} 29. Re1 {[%emt 0:01:06]} Qc8 {[%emt 0:00:13]} 30. Qd5 {[%emt 0:00:13]} Nd8 {[%emt 0:02:37]} 31. Qxd6+ {[%emt 0:00:45]} Kg8 {[%emt 0:00:51]} 32. Re8+ {[%emt 0:00:21]} Kf7 {[%emt 0:00:33]} 33. Qf8# {[%emt 0:00:29]} 1-0

[Event "EYCC Girls-U10 2019"]
[Site "Bratislava"]
[Date "2019.08.07"]
[Round "6.16"]
[White "Abbasova, Zarifa"]
[Black "Mkrtchyan, Anahit H."]
[Result "0-1"]
[ECO "C58"]
[WhiteElo "1353"]
[BlackElo "1155"]
[Annotator "NA"]
[PlyCount "66"]
[EventDate "2019.08.02"]
[EventType "swiss"]
[EventCountry "SVK"]
[SourceTitle "playchess.com"]
[Source "ChessBase"]
[SourceQuality "1"]
[TimeControl "40/5400+30:1800+30"]

1. e4 e5 2. Nf3 Nc6 3. Bc4 Nf6 4. Ng5 d5 5. exd5 Na5 6. Bb5+ c6 7. dxc6 bxc6 8. Qf3 Be7 9. Bxc6+ Nxc6 10. Qxc6+ Bd7 11. Qc4 O-O 12. Qe2 Nd5 13. Ne4 Nf4 14. Qf3 f5 15. Nec3 Rc8 16. d4 Bc6 17. d5 Nxd5 18. Nxd5 Bxd5 19. Qd1 Bxg2 20. Qxd8 Rfxd8 21. Rg1 Rxc2 22. Nc3 Bf3 23. Bh6 g6 24. Rg3 e4 25. Be3 Bd6 26. Bg5 Bxg3 27. Bxd8 Bxf2+ 28. Kf1 Rxb2 29. Bf6 Rc2 30. Rb1 Bb6 31. Nd5 Rf2+ 32. Ke1 Rxh2 33. Rc1 Rh3 0-1

[Event "EYCC Girls-U10 2019"]
[Site "Bratislava"]
[Date "2019.08.07"]
[Round "6.17"]
[White "Mence, Eline"]
[Black "Kuznecova, Marija"]
[Result "0-1"]
[ECO "B07"]
[WhiteElo "1162"]
[BlackElo "1375"]
[Annotator "NA"]
[PlyCount "48"]
[EventDate "2019.08.02"]
[EventType "swiss"]
[EventCountry "SVK"]
[SourceTitle "playchess.com"]
[Source "ChessBase"]
[SourceQuality "1"]
[TimeControl "40/5400+30:1800+30"]

1. e4 {[%emt 0:00:00]} d6 {[%emt 0:00:00]} 2. d4 {[%emt 0:00:00]} Nf6 {[%emt 0:00:00]} 3. Nc3 {[%emt 0:00:00]} Nbd7 {[%emt 0:00:00]} 4. f3 {[%emt 0:00:06]} e5 {[%emt 0:00:00]} 5. Nge2 {[%emt 0:00:06]} Be7 {[%emt 0:00:16]} 6. Be3 {[%emt 0:00:21]} c6 {[%emt 0:00:27]} 7. Qd2 {[%emt 0:00:33]} b5 {[%emt 0:00:36]} 8. g4 {[%emt 0:00:35]} h6 {[%emt 0:00:20]} 9. h4 {[%emt 0:00:48]} Qc7 {[%emt 0:01:48]} 10. Ng3 {[%emt 0:01:11]} Nb6 {[%emt 0:02:30]} 11. Be2 {[%emt 0:11:00]} b4 {[%emt 0:04:30]} 12. Nd1 {[%emt 0:00:28]} a5 {[%emt 0:01:19]} 13. Nf2 {[%emt 0:04:00]} Na4 {[%emt 0:01:24]} 14. O-O-O {[%emt 0:01:15]} Be6 {[%emt 0:00:34]} 15. Kb1 {[%emt 0:00:30]} Qb8 {[%emt 0:01:37]} 16. Qd3 {[%emt 0:02:13]} Nc3+ {[%emt 0:00:37]} 17. Ka1 {[%emt 0:01:47]} Nxd1 {[%emt 0:14:18]} 18. Rxd1 {[%emt 0:00:39]} b3 {[%emt 0:04:56]} 19. a3 {[%emt 0:02:22]} bxc2 {[%emt 0:01:41]} 20. Qxc2 {[%emt 0:00:57]} exd4 {[%emt 0:08:20]} 21. Bxd4 {[%emt 0:00:58]} O-O {[%emt 0:04:22]} 22. Qd2 {[%emt 0:02:24]} Qb3 {[%emt 0:00:59]} 23. Kb1 {[%emt 0:00:58]} Qa2+ {[%emt 0:02:56]} 24. Kc2 {[%emt 0:00:26]} Bb3+ 0-1

[Event "EYCC Girls-U10 2019"]
[Site "Bratislava"]
[Date "2019.08.07"]
[Round "6.20"]
[White "Horkova, Tereza"]
[Black "Haapsal, Maria Ioanna"]
[Result "1-0"]
[ECO "B33"]
[WhiteElo "1287"]
[BlackElo "1127"]
[Annotator "NA"]
[PlyCount "83"]
[EventDate "2019.08.02"]
[EventType "swiss"]
[EventCountry "SVK"]
[SourceTitle "playchess.com"]
[Source "ChessBase"]
[SourceQuality "1"]
[TimeControl "40/5400+30:1800+30"]

1. e4 {[%emt 0:00:00]} c5 {[%emt 0:00:00]} 2. Nf3 {[%emt 0:00:00]} e6 {[%emt 0:00:00]} 3. d4 {[%emt 0:00:11]} cxd4 {[%emt 0:00:00]} 4. Nxd4 {[%emt 0:00:07]} Nc6 {[%emt 0:00:00]} 5. Nc3 {[%emt 0:00:13]} Nf6 {[%emt 0:00:00]} 6. Ndb5 {[%emt 0:00:36]} d6 {[%emt 0:00:00]} 7. Bf4 {[%emt 0:00:37]} e5 {[%emt 0:00:00]} 8. Bg5 {[%emt 0:00:12]} a6 {[%emt 0:00:08]} 9. Na3 {[%emt 0:01:28]} b5 {[%emt 0:00:04]} 10. Bxf6 {[%emt 0:04:01]} Qxf6 {[%emt 0:03:35]} 11. Nd5 {[%emt 0:00:14]} Qd8 {[%emt 0:01:25]} 12. c3 {[%emt 0:01:06]} Be6 {[%emt 0:03:47]} 13. Nc2 {[%emt 0:04:11]} Rc8 {[%emt 0:08:15]} 14. Nce3 {[%emt 0:01:56]} Qa5 {[%emt 0:09:51]} 15. Be2 {[%emt 0:02:37]} b4 {[%emt 0:05:25]} 16. O-O {[%emt 0:01:58]} bxc3 {[%emt 0:02:34]} 17. bxc3 {[%emt 0:00:11]} Bxd5 {[%emt 0:01:34]} 18. Nxd5 {[%emt 0:00:34]} Be7 {[%emt 0:15:24]} 19. Bg4 {[%emt 0:03:05]} Rb8 {[%emt 0:02:58]} 20. Qf3 {[%emt 0:09:57]} Qd8 {[%emt 0:12:08]} 21. Rfe1 {[%emt 0:04:14]} g6 {[%emt 0:05:34]} 22. Qd3 {[%emt 0:03:58]} Ra8 {[%emt 0:04:01]} 23. Qc4 {[%emt 0:01:20]} Na5 {[%emt 0:01:30]} 24. Qa4+ {[%emt 0:00:32]} Kf8 {[%emt 0:00:28]} 25. Rab1 {[%emt 0:03:46]} Ra7 {[%emt 0:06:59]} 26. Rb6 {[%emt 0:15:51]} Nb7 {[%emt 0:01:42]} 27. Reb1 {[%emt 0:01:11]} Nc5 {[%emt 0:02:54]} 28. Qc6 {[%emt 0:04:03]} Ra8 {[%emt 0:04:33]} 29. Nc7 {[%emt 0:01:57]} Ra7 {[%emt 0:01:50]} 30. Rb8 {[%emt 0:03:19]} Rxc7 {[%emt 0:00:59]} 31. Rxd8+ {[%emt 0:00:09]} Bxd8 {[%emt 0:00:13]} 32. Qxd6+ {[%emt 0:00:12]} Ke8 {[%emt 0:00:56]} 33. Qxe5+ {[%emt 0:00:13]} Kf8 {[%emt 0:00:38]} 34. Qxh8+ {[%emt 0:01:02]} Ke7 {[%emt 0:00:14]} 35. Rb8 {[%emt 0:00:44]} Nb7 {[%emt 0:00:35]} 36. Rxd8 {[%emt 0:00:22]} Nxd8 {[%emt 0:00:15]} 37. Qe5+ {[%emt 0:00:04]} Ne6 {[%emt 0:00:27]} 38. Bxe6 {[%emt 0:00:11]} fxe6 {[%emt 0:00:28]} 39. Qxc7+ {[%emt 0:00:09]} Kf6 {[%emt 0:00:07]} 40. f4 {[%emt 0:00:00]} a5 {[%emt 0:00:00]} 41. g4 {[%emt 0:00:32]} h6 {[%emt 0:00:22]} 42. e5# 1-0

[Event "EYCC Girls-U10 2019"]
[Site "Bratislava"]
[Date "2019.08.07"]
[Round "6.21"]
[White "Pavesi, Bianca"]
[Black "Novomeska, Karin"]
[Result "1/2-1/2"]
[ECO "D02"]
[WhiteElo "1537"]
[BlackElo "1269"]
[Annotator "NA"]
[PlyCount "129"]
[EventDate "2019.08.02"]
[EventType "swiss"]
[EventCountry "SVK"]
[SourceTitle "playchess.com"]
[Source "ChessBase"]
[SourceQuality "1"]
[TimeControl "40/5400+30:1800+30"]

1. d4 {[%emt 0:00:00]} d5 {[%emt 0:00:00]} 2. Nf3 {[%emt 0:01:34]} e6 {[%emt 0:00:16]} 3. e3 {[%emt 0:01:08]} c5 {[%emt 0:02:27]} 4. b3 {[%emt 0:05:45]} cxd4 {[%emt 0:03:07]} 5. exd4 {[%emt 0:03:09]} Nc6 {[%emt 0:02:19]} 6. Bd3 {[%emt 0:04:52]} Qa5+ {[%emt 0:06:24]} 7. Nbd2 {[%emt 0:06:10]} Qc3 {[%emt 0:08:20]} 8. Rb1 {[%emt 0:05:03]} Nxd4 {[%emt 0:09:33]} 9. Nxd4 {[%emt 0:08:06]} Qxd4 {[%emt 0:00:46]} 10. Nf3 {[%emt 0:04:51]} Qb6 {[%emt 0:07:13]} 11. O-O {[%emt 0:04:17]} Nf6 {[%emt 0:02:24]} 12. Bb2 {[%emt 0:05:28]} Be7 {[%emt 0:02:58]} 13. Qe2 {[%emt 0:06:38]} Bd7 {[%emt 0:05:15]} 14. Kh1 {[%emt 0:08:05]} a6 {[%emt 0:13:50]} 15. a4 {[%emt 0:06:03]} Qc5 {[%emt 0:06:21]} 16. Bd4 {[%emt 0:07:18]} Qc7 {[%emt 0:02:54]} 17. Ne5 {[%emt 0:03:11]} Bc5 {[%emt 0:04:44]} 18. Bb2 {[%emt 0:03:11]} Qd6 {[%emt 0:04:36]} 19. Rbd1 {[%emt 0:02:40]} Ba3 {[%emt 0:01:46]} 20. Bxa3 {[%emt 0:01:05]} Qxa3 {[%emt 0:00:56]} 21. Nxd7 {[%emt 0:00:40]} Nxd7 {[%emt 0:01:51]} 22. Bf5 {[%emt 0:03:02]} Qe7 {[%emt 0:00:34]} 23. Rfe1 {[%emt 0:01:04]} Nf6 {[%emt 0:02:38]} 24. Bg4 {[%emt 0:04:34]} O-O {[%emt 0:02:15]} 25. Bf3 {[%emt 0:01:38]} Qc7 {[%emt 0:01:26]} 26. Rd2 {[%emt 0:01:29]} Qc5 {[%emt 0:02:43]} 27. Rc1 {[%emt 0:01:06]} b5 {[%emt 0:00:16]} 28. Ra1 {[%emt 0:01:13]} bxa4 {[%emt 0:00:25]} 29. Rxa4 {[%emt 0:00:28]} Qb5 {[%emt 0:00:42]} 30. Qe1 {[%emt 0:00:38]} Ne4 {[%emt 0:01:30]} 31. Bxe4 {[%emt 0:00:16]} dxe4 {[%emt 0:00:05]} 32. Rxe4 {[%emt 0:00:07]} Qc6 {[%emt 0:00:45]} 33. Red4 {[%emt 0:00:39]} Qc7 {[%emt 0:00:33]} 34. Rd7 {[%emt 0:00:28]} Qa5 {[%emt 0:00:43]} 35. Qd1 {[%emt 0:00:39]} g6 {[%emt 0:01:01]} 36. h3 {[%emt 0:00:20]} Qc5 {[%emt 0:01:04]} 37. R7d4 {[%emt 0:00:57]} Qe5 {[%emt 0:01:12]} 38. Re2 {[%emt 0:00:29]} Qf5 {[%emt 0:00:33]} 39. Red2 {[%emt 0:00:34]} Rac8 {[%emt 0:00:43]} 40. Rd6 {[%emt 0:00:00]} a5 {[%emt 0:00:00]} 41. R6d3 {[%emt 0:02:28]} Qf6 {[%emt 0:02:05]} 42. Rf3 {[%emt 0:01:46]} Qe7 {[%emt 0:00:52]} 43. Rfd3 {[%emt 0:02:04]} Kg7 {[%emt 0:02:55]} 44. Qa1+ {[%emt 0:02:50]} Qf6 {[%emt 0:02:40]} 45. Qxa5 {[%emt 0:04:18]} Qf5 {[%emt 0:02:49]} 46. Qxf5 {[%emt 0:02:21]} exf5 {[%emt 0:00:06]} 47. Kh2 {[%emt 0:01:57]} Rc7 48. Rd7 {[%emt 0:04:11]} Rc6 {[%emt 0:02:40]} 49. R7d6 {[%emt 0:02:04]} Rcc8 {[%emt 0:01:19]} 50. Rb6 {[%emt 0:01:48]} Rc7 {[%emt 0:01:21]} 51. c4 {[%emt 0:01:46]} Rc5 {[%emt 0:01:53]} 52. Rc2 {[%emt 0:01:24]} Rfc8 {[%emt 0:00:49]} 53. Kg3 {[%emt 0:01:50]} R5c6 {[%emt 0:07:32]} 54. Rxc6 {[%emt 0:01:07]} Rxc6 {[%emt 0:00:02]} 55. c5 {[%emt 0:01:01]} Rc8 {[%emt 0:02:18]} 56. c6 {[%emt 0:01:36]} Kf6 {[%emt 0:00:43]} 57. b4 {[%emt 0:00:28]} Ke6 {[%emt 0:00:53]} 58. b5 {[%emt 0:00:55]} Kd6 {[%emt 0:01:59]} 59. Kf4 {[%emt 0:01:33]} f6 {[%emt 0:00:31]} 60. g4 {[%emt 0:00:35]} fxg4 {[%emt 0:00:34]} 61. hxg4 {[%emt 0:00:20]} Kc7 {[%emt 0:00:55]} 62. Ke4 {[%emt 0:02:18]} Re8+ {[%emt 0:00:44]} 63. Kd5 Rd8+ 64. Ke6 Re8+ 65. Kd5 1/2-1/2

[Event "EYCC Girls-U10 2019"]
[Site "Bratislava"]
[Date "2019.08.07"]
[Round "6.22"]
[White "Alexandri, Vasiliki"]
[Black "Piddubna, Bozhena"]
[Result "0-1"]
[ECO "D53"]
[WhiteElo "1068"]
[BlackElo "1444"]
[Annotator "NA"]
[PlyCount "84"]
[EventDate "2019.08.02"]
[EventType "swiss"]
[EventCountry "SVK"]
[SourceTitle "playchess.com"]
[Source "ChessBase"]
[SourceQuality "1"]
[TimeControl "40/5400+30:1800+30"]

1. d4 d5 2. c4 e6 3. Nc3 Nf6 4. Bg5 Be7 5. e3 b6 6. Qc2 Bb7 7. Bxf6 Bxf6 8. O-O-O Nd7 9. Nf3 Qc8 10. Kb1 a5 11. Rc1 Be7 12. cxd5 exd5 13. Qa4 O-O 14. Bd3 Nf6 15. Qb3 c5 16. Qc2 c4 17. Bf5 Qb8 18. Ne5 Bc8 19. Nc6 Qc7 20. Nxe7+ Qxe7 21. Bxc8 Rfxc8 22. Qf5 Rd8 23. a3 a4 24. Qc2 Qe8 25. Na2 Rd6 26. Nb4 b5 27. Qf5 Qe4+ 28. Qxe4 Nxe4 29. Rc2 h6 30. f3 Nf6 31. Re1 Re8 32. Rce2 Rde6 33. Kc2 Kh7 34. Kc3 h5 35. Na2 g5 36. Kb4 Rb8 37. Kc5 Nd7+ 38. Kb4 Nf6 39. Nc3 Kg6 40. Kc5 Nd7+ 41. Kxd5 Rc8 42. Nxb5 Nb6# 0-1

[Event "EYCC Girls-U10 2019"]
[Site "Bratislava"]
[Date "2019.08.07"]
[Round "6.24"]
[White "Zubkovskaya, Ekaterina"]
[Black "Kollia, Evgenia"]
[Result "1-0"]
[ECO "C64"]
[WhiteElo "1449"]
[BlackElo "1034"]
[Annotator "NA"]
[PlyCount "87"]
[EventDate "2019.08.02"]
[EventType "swiss"]
[EventCountry "SVK"]
[SourceTitle "playchess.com"]
[Source "ChessBase"]
[SourceQuality "1"]
[TimeControl "40/5400+30:1800+30"]

1. e4 {[%emt 0:00:00]} e5 {[%emt 0:00:00]} 2. Nf3 {[%emt 0:00:00]} Nc6 {[%emt 0:00:05]} 3. Bb5 {[%emt 0:00:00]} Bc5 {[%emt 0:00:51]} 4. O-O {[%emt 0:00:07]} d6 {[%emt 0:02:04]} 5. c3 {[%emt 0:00:06]} a6 {[%emt 0:02:00]} 6. Ba4 {[%emt 0:00:09]} b5 {[%emt 0:00:45]} 7. Bb3 {[%emt 0:00:11]} Bg4 {[%emt 0:03:15]} 8. h3 {[%emt 0:00:37]} Bh5 {[%emt 0:01:14]} 9. d3 {[%emt 0:00:16]} Nf6 {[%emt 0:01:20]} 10. Bg5 {[%emt 0:00:11]} h6 {[%emt 0:02:11]} 11. Bxf6 {[%emt 0:01:25]} Qxf6 {[%emt 0:00:58]} 12. Bd5 {[%emt 0:00:26]} Kd7 {[%emt 0:06:56]} 13. Bxc6+ {[%emt 0:00:09]} Kxc6 {[%emt 0:01:04]} 14. Nbd2 {[%emt 0:02:04]} Rad8 {[%emt 0:11:20]} 15. Qc2 {[%emt 0:00:21]} Kb7 {[%emt 0:03:00]} 16. b4 {[%emt 0:02:07]} Bb6 {[%emt 0:01:48]} 17. c4 {[%emt 0:03:06]} c6 18. a4 {[%emt 0:00:18]} Rc8 {[%emt 0:09:37]} 19. Qa2 {[%emt 0:00:08]} Ra8 {[%emt 0:01:00]} 20. Qb3 {[%emt 0:00:46]} Rhd8 {[%emt 0:06:20]} 21. Rfb1 {[%emt 0:03:46]} Qe6 {[%emt 0:03:04]} 22. Qb2 {[%emt 0:08:22]} f6 {[%emt 0:03:52]} 23. Qc2 {[%emt 0:02:33]} Rdc8 {[%emt 0:04:28]} 24. Ra3 {[%emt 0:01:06]} g5 25. c5 {[%emt 0:00:05]} dxc5 {[%emt 0:02:35]} 26. bxc5 Bc7 27. d4 {[%emt 0:10:40]} Rd8 {[%emt 0:07:46]} 28. axb5 {[%emt 0:02:05]} axb5 {[%emt 0:05:40]} 29. d5 {[%emt 0:08:15]} cxd5 {[%emt 0:02:51]} 30. exd5 {[%emt 0:00:12]} Qxd5 {[%emt 0:02:07]} 31. Rxb5+ {[%emt 0:01:17]} Kc6 {[%emt 0:02:53]} 32. Rxa8 {[%emt 0:02:28]} Rxa8 {[%emt 0:00:34]} 33. Rb1 {[%emt 0:03:41]} Qxc5 {[%emt 0:04:01]} 34. Qf5 {[%emt 0:03:02]} Qe7 {[%emt 0:01:50]} 35. Qe4+ {[%emt 0:00:16]} Kd7 {[%emt 0:02:42]} 36. Qxa8 {[%emt 0:00:15]} Qh7 {[%emt 0:01:18]} 37. Qd5+ {[%emt 0:00:18]} Kc8 {[%emt 0:01:05]} 38. Rc1 {[%emt 0:00:20]} Bf7 {[%emt 0:02:23]} 39. Qc5 {[%emt 0:00:15]} Bh5 {[%emt 0:00:29]} 40. Ne4 {[%emt 0:00:00]} Bg6 {[%emt 0:00:00]} 41. Nxf6 {[%emt 0:00:38]} Qf7 {[%emt 0:03:04]} 42. Nd5 {[%emt 0:00:24]} e4 {[%emt 0:01:52]} 43. Ne5 {[%emt 0:00:14]} Qh7 {[%emt 0:01:21]} 44. Nxg6 {[%emt 0:00:22]} 1-0

[Event "EYCC Girls-U10 2019"]
[Site "Bratislava"]
[Date "2019.08.08"]
[Round "7.1"]
[White "Shukhman, Anna"]
[Black "Iudina, Veronika"]
[Result "1-0"]
[ECO "A13"]
[WhiteElo "1806"]
[BlackElo "1357"]
[Annotator "NA"]
[PlyCount "109"]
[EventDate "2019.08.02"]
[EventType "swiss"]
[EventCountry "SVK"]
[SourceTitle "playchess.com"]
[Source "ChessBase"]
[SourceQuality "1"]
[TimeControl "40/5400+30:1800+30"]

1. Nf3 {[%emt 0:00:00]} d5 {[%emt 0:00:30]} 2. c4 {[%emt 0:00:00]} e6 {[%emt 0:00:26]} 3. g3 {[%emt 0:00:33]} c5 {[%emt 0:01:05]} 4. Bg2 {[%emt 0:00:12]} Nf6 {[%emt 0:01:00]} 5. O-O {[%emt 0:00:22]} Nc6 {[%emt 0:01:06]} 6. cxd5 {[%emt 0:00:29]} exd5 {[%emt 0:00:47]} 7. d4 {[%emt 0:00:05]} cxd4 {[%emt 0:01:24]} 8. Nxd4 {[%emt 0:00:07]} Be7 {[%emt 0:01:16]} 9. Nc3 {[%emt 0:01:31]} O-O {[%emt 0:01:16]} 10. Bf4 {[%emt 0:02:11]} Qb6 {[%emt 0:02:08]} 11. Ndb5 {[%emt 0:05:40]} Bf5 {[%emt 0:04:31]} 12. Be3 {[%emt 0:10:54]} Qa5 {[%emt 0:09:19]} 13. Nd4 {[%emt 0:02:20]} Nxd4 {[%emt 0:01:30]} 14. Bxd4 {[%emt 0:01:09]} Ne4 {[%emt 0:02:26]} 15. Qb3 {[%emt 0:04:50]} Bb4 {[%emt 0:09:32]} 16. Nxd5 {[%emt 0:05:48]} Rad8 {[%emt 0:03:17]} 17. Qxb4 {[%emt 0:14:41]} Qxb4 {[%emt 0:00:32]} 18. Nxb4 {[%emt 0:00:13]} Rxd4 {[%emt 0:00:06]} 19. Nd3 {[%emt 0:02:00]} b6 {[%emt 0:04:01]} 20. Rac1 {[%emt 0:05:05]} Rfd8 {[%emt 0:03:25]} 21. Ne5 {[%emt 0:01:45]} Rd2 {[%emt 0:03:18]} 22. g4 {[%emt 0:04:02]} Be6 {[%emt 0:07:05]} 23. Bxe4 {[%emt 0:01:14]} Rxe2 {[%emt 0:01:10]} 24. Nc6 {[%emt 0:05:34]} Re8 {[%emt 0:02:52]} 25. Bf3 {[%emt 0:00:54]} Rxb2 {[%emt 0:00:44]} 26. Nxa7 {[%emt 0:01:42]} Rxa2 {[%emt 0:01:07]} 27. Nb5 {[%emt 0:00:41]} Rb8 {[%emt 0:06:07]} 28. Nd4 {[%emt 0:03:52]} Bd7 {[%emt 0:02:34]} 29. Rc7 {[%emt 0:03:00]} Be8 {[%emt 0:02:34]} 30. Rfc1 {[%emt 0:03:21]} Kf8 {[%emt 0:01:54]} 31. Nf5 {[%emt 0:02:24]} g6 {[%emt 0:01:11]} 32. Nd6 {[%emt 0:00:39]} b5 {[%emt 0:01:09]} 33. Rc8 {[%emt 0:02:40]} Rxc8 {[%emt 0:01:05]} 34. Rxc8 {[%emt 0:00:04]} Ra1+ {[%emt 0:00:15]} 35. Kg2 {[%emt 0:00:07]} Re1 {[%emt 0:00:06]} 36. Nxe8 {[%emt 0:00:06]} Rxe8 {[%emt 0:00:08]} 37. Rxe8+ {[%emt 0:00:02]} Kxe8 {[%emt 0:00:07]} 38. Bc6+ {[%emt 0:00:03]} Ke7 {[%emt 0:00:06]} 39. Bxb5 {[%emt 0:00:05]} Kd6 {[%emt 0:00:34]} 40. g5 {[%emt 0:00:00]} Ke5 {[%emt 0:00:00]} 41. Kg3 {[%emt 0:00:37]} f6 {[%emt 0:01:31]} 42. f4+ {[%emt 0:00:30]} Kf5 {[%emt 0:00:13]} 43. Bd3+ {[%emt 0:00:07]} Ke6 {[%emt 0:00:07]} 44. Kg4 {[%emt 0:00:34]} Kf7 {[%emt 0:01:24]} 45. Bc4+ {[%emt 0:00:10]} Kg7 {[%emt 0:00:21]} 46. gxf6+ {[%emt 0:00:16]} Kxf6 {[%emt 0:00:08]} 47. h4 {[%emt 0:00:32]} h6 {[%emt 0:00:58]} 48. Bd3 {[%emt 0:00:12]} g5 {[%emt 0:00:45]} 49. hxg5+ {[%emt 0:00:08]} hxg5 {[%emt 0:00:09]} 50. fxg5+ {[%emt 0:00:03]} Kg7 {[%emt 0:00:09]} 51. Kh5 {[%emt 0:00:11]} Kh8 {[%emt 0:00:07]} 52. Kh6 {[%emt 0:00:11]} Kg8 {[%emt 0:00:04]} 53. g6 {[%emt 0:00:07]} Kh8 {[%emt 0:00:05]} 54. g7+ {[%emt 0:00:06]} Kg8 {[%emt 0:00:04]} 55. Bc4# {[%emt 0:00:04]} 1-0

[Event "EYCC Girls-U10 2019"]
[Site "Bratislava"]
[Date "2019.08.08"]
[Round "7.2"]
[White "Hnatyshyn, Anastasiia"]
[Black "Prochaieva, Alina"]
[Result "1-0"]
[ECO "B41"]
[WhiteElo "1380"]
[BlackElo "1247"]
[Annotator "NA"]
[PlyCount "115"]
[EventDate "2019.08.02"]
[EventType "swiss"]
[EventCountry "SVK"]
[SourceTitle "playchess.com"]
[Source "ChessBase"]
[SourceQuality "1"]
[TimeControl "40/5400+30:1800+30"]

1. e4 c5 {[%emt 0:00:00]} 2. Nf3 {[%emt 0:00:02]} e6 {[%emt 0:00:00]} 3. d4 {[%emt 0:00:29]} cxd4 {[%emt 0:00:00]} 4. Nxd4 {[%emt 0:00:26]} a6 {[%emt 0:00:08]} 5. c4 {[%emt 0:00:29]} Qc7 {[%emt 0:00:34]} 6. Nc3 {[%emt 0:00:43]} Nf6 {[%emt 0:00:58]} 7. Bd3 {[%emt 0:02:21]} d6 {[%emt 0:01:01]} 8. O-O {[%emt 0:01:23]} g6 {[%emt 0:01:13]} 9. b3 {[%emt 0:06:27]} Bg7 {[%emt 0:00:57]} 10. Bb2 {[%emt 0:00:46]} O-O {[%emt 0:02:50]} 11. Kh1 {[%emt 0:04:18]} Nbd7 {[%emt 0:04:18]} 12. Qd2 {[%emt 0:05:13]} b6 {[%emt 0:03:34]} 13. Rad1 {[%emt 0:02:00]} Bb7 {[%emt 0:05:08]} 14. Rfe1 {[%emt 0:03:57]} Ng4 {[%emt 0:08:02]} 15. Nf3 {[%emt 0:03:39]} Nc5 {[%emt 0:09:50]} 16. Bc2 {[%emt 0:05:44]} Rad8 {[%emt 0:08:43]} 17. h3 {[%emt 0:04:50]} Nf6 {[%emt 0:06:29]} 18. b4 {[%emt 0:19:02]} Ncd7 {[%emt 0:09:05]} 19. Qxd6 Qxc4 20. Bb3 {[%emt 0:08:42]} Qc6 {[%emt 0:08:47]} 21. Qxc6 {[%emt 0:09:05]} Bxc6 {[%emt 0:00:06]} 22. Nd4 {[%emt 0:00:47]} Rc8 {[%emt 0:07:07]} 23. Nxc6 {[%emt 0:00:59]} Rxc6 {[%emt 0:00:05]} 24. f4 {[%emt 0:03:21]} Nb8 {[%emt 0:07:12]} 25. e5 {[%emt 0:01:46]} Nfd7 {[%emt 0:01:19]} 26. Ne4 {[%emt 0:01:55]} Rc7 {[%emt 0:02:54]} 27. Rd6 {[%emt 0:01:36]} Rfc8 {[%emt 0:01:55]} 28. Red1 {[%emt 0:00:18]} Bf8 {[%emt 0:01:21]} 29. R6d4 {[%emt 0:00:17]} b5 {[%emt 0:02:05]} 30. a3 {[%emt 0:00:29]} Nb6 {[%emt 0:00:59]} 31. Nf6+ {[%emt 0:00:45]} Kh8 {[%emt 0:01:05]} 32. Rd8 {[%emt 0:01:02]} Nc6 {[%emt 0:01:13]} 33. Rxc8 {[%emt 0:00:36]} Rxc8 {[%emt 0:00:52]} 34. Nd7 {[%emt 0:01:14]} Nxd7 {[%emt 0:02:15]} 35. Rxd7 {[%emt 0:00:13]} Kg8 {[%emt 0:01:40]} 36. g4 {[%emt 0:02:49]} Be7 {[%emt 0:02:35]} 37. f5 gxf5 {[%emt 0:00:49]} 38. gxf5 {[%emt 0:02:45]} exf5 {[%emt 0:00:30]} 39. e6 {[%emt 0:00:52]} f6 {[%emt 0:00:37]} 40. Bd5 {[%emt 0:00:00]} Kf8 {[%emt 0:00:00]} 41. Rb7 {[%emt 0:03:42]} h5 {[%emt 0:10:11]} 42. h4 {[%emt 0:02:00]} Nd8 {[%emt 0:04:37]} 43. Rd7 {[%emt 0:02:37]} Ke8 {[%emt 0:04:21]} 44. Bd4 {[%emt 0:02:38]} a5 {[%emt 0:03:13]} 45. bxa5 {[%emt 0:01:34]} Nc6 {[%emt 0:07:33]} 46. Bb6 {[%emt 0:01:56]} Nxa5 {[%emt 0:02:18]} 47. Bxa5 {[%emt 0:00:31]} Bxa3 {[%emt 0:01:11]} 48. Rc7 {[%emt 0:00:59]} Rxc7 {[%emt 0:00:56]} 49. Bxc7 {[%emt 0:00:06]} Ke7 {[%emt 0:00:09]} 50. Kg2 {[%emt 0:00:11]} Bc1 {[%emt 0:01:08]} 51. Kf3 {[%emt 0:00:10]} b4 {[%emt 0:00:23]} 52. Bb6 {[%emt 0:00:26]} Bd2 {[%emt 0:00:26]} 53. Bc5+ {[%emt 0:00:09]} Ke8 {[%emt 0:00:43]} 54. Bc6+ {[%emt 0:00:14]} Kd8 {[%emt 0:00:23]} 55. e7+ {[%emt 0:00:08]} Kc7 {[%emt 0:00:15]} 56. e8=Q {[%emt 0:00:05]} b3 {[%emt 0:00:25]} 57. Qd7+ {[%emt 0:00:05]} Kb8 {[%emt 0:00:07]} 58. Ba7# {[%emt 0:00:06]} 1-0